[Event "Titled Tuesday Blitz July 11 Late 2023"]
[White "Cooper, Aaron"]
[Black "Rakitic2010"]
[WhiteFideId "2634945"]
[WhiteElo "2237"]
[BlackElo "2514"]
[Result "1-0"]
[Round "4"]
[TimeControl "180+2"]
[Date "2023.07.11"]
[WhiteClock "0:00:10"]
[BlackClock "0:00:00"]
[Board "102"]

1. b4 {[%clk 0:03:00]}  Nf6 {[%clk 0:02:57]} 2. Bb2 {[%clk 0:03:00]}  e6 {[%clk 0:02:57]} 3. b5 {[%clk 0:02:58]}  Be7 {[%clk 0:02:57]} 4. Nf3 {[%clk 0:02:56]}  O-O {[%clk 0:02:57]} 5. e3 {[%clk 0:02:54]}  d5 {[%clk 0:02:57]} 6. c4 {[%clk 0:02:50]}  a6 {[%clk 0:02:57]} 7. a4 {[%clk 0:02:47]}  axb5 {[%clk 0:02:56]} 8. axb5 {[%clk 0:02:47]}  Rxa1 {[%clk 0:02:57]} 9. Bxa1 {[%clk 0:02:48]}  c6 {[%clk 0:02:57]} 10. d4 {[%clk 0:02:41]}  dxc4 {[%clk 0:02:55]} 11. Bxc4 {[%clk 0:02:40]}  c5 {[%clk 0:02:56]} 12. O-O {[%clk 0:02:38]}  Nbd7 {[%clk 0:02:51]} 13. Nc3 {[%clk 0:02:33]}  Nb6 {[%clk 0:02:49]} 14. Bd3 {[%clk 0:02:27]}  c4 {[%clk 0:02:48]} 15. Bc2 {[%clk 0:02:27]}  Bd7 {[%clk 0:02:47]} 16. Bb2 {[%clk 0:02:21]}  Qc7 {[%clk 0:02:30]} 17. e4 {[%clk 0:02:19]}  Ra8 {[%clk 0:02:22]} 18. Qb1 {[%clk 0:02:18]}  Ra5 {[%clk 0:02:12]} 19. e5 {[%clk 0:02:17]}  Nfd5 {[%clk 0:02:12]} 20. Bxh7+ {[%clk 0:02:14]}  Kh8 {[%clk 0:02:10]} 21. Ne4 {[%clk 0:01:56]}  c3 {[%clk 0:02:07]} 22. Neg5 {[%clk 0:01:53]}  c2 {[%clk 0:01:51]} 23. Bxc2 {[%clk 0:01:46]}  Be8 {[%clk 0:01:47]} 24. Be4 {[%clk 0:01:24]}  Qd8 {[%clk 0:01:36]} 25. h4 {[%clk 0:01:15]}  g6 {[%clk 0:01:26]} 26. Qc1 {[%clk 0:01:01]}  Rxb5 {[%clk 0:01:21]} 27. Nxe6 {[%clk 0:00:41]}  fxe6 {[%clk 0:01:20]} 28. Qh6+ {[%clk 0:00:41]}  Kg8 {[%clk 0:01:21]} 29. Bxg6 {[%clk 0:00:40]}  Bxg6 {[%clk 0:01:18]} 30. Qxg6+ {[%clk 0:00:40]}  Kf8 {[%clk 0:01:19]} 31. Bc1 {[%clk 0:00:36]}  Bxh4 {[%clk 0:01:11]} 32. Bh6+ {[%clk 0:00:34]}  Ke7 {[%clk 0:01:11]} 33. Nxh4 {[%clk 0:00:33]}  Kd7 {[%clk 0:01:10]} 34. Bg5 {[%clk 0:00:34]}  Qe8 {[%clk 0:01:08]} 35. Qg7+ {[%clk 0:00:34]}  Kc8 {[%clk 0:01:06]} 36. Rc1+ {[%clk 0:00:33]}  Kb8 {[%clk 0:01:06]} 37. Nf3 {[%clk 0:00:30]}  Rb2 {[%clk 0:00:57]} 38. Bd2 {[%clk 0:00:24]}  Qa4 {[%clk 0:00:48]} 39. Qf8+ {[%clk 0:00:21]}  Ka7 {[%clk 0:00:47]} 40. Qc5 {[%clk 0:00:21]}  Rb5 {[%clk 0:00:44]} 41. Qc2 {[%clk 0:00:19]}  Qxc2 {[%clk 0:00:39]} 42. Rxc2 {[%clk 0:00:20]}  Rb1+ {[%clk 0:00:39]} 43. Kh2 {[%clk 0:00:20]}  Ra1 {[%clk 0:00:32]} 44. g4 {[%clk 0:00:20]}  Nd7 {[%clk 0:00:29]} 45. g5 {[%clk 0:00:21]}  Nf8 {[%clk 0:00:29]} 46. Nh4 {[%clk 0:00:18]}  Ra4 {[%clk 0:00:30]} 47. Be3 {[%clk 0:00:17]}  Ne7 {[%clk 0:00:28]} 48. Rc7 {[%clk 0:00:16]}  Nfg6 {[%clk 0:00:22]} 49. Nxg6 {[%clk 0:00:16]}  Nxg6 {[%clk 0:00:23]} 50. Rg7 {[%clk 0:00:16]}  Nh4 {[%clk 0:00:24]} 51. d5+ {[%clk 0:00:13]}  Ka6 {[%clk 0:00:20]} 52. dxe6 {[%clk 0:00:12]}  Nf3+ {[%clk 0:00:17]} 53. Kg3 {[%clk 0:00:10]}  Nh4 {[%clk 0:00:17]} 54. Rf7 {[%clk 0:00:08]}  Kb5 {[%clk 0:00:14]} 55. e7 {[%clk 0:00:08]}  Ra8 {[%clk 0:00:12]} 56. Rf8 {[%clk 0:00:09]}  Nf5+ {[%clk 0:00:11]} 57. Rxf5 {[%clk 0:00:07]}  Re8 {[%clk 0:00:11]} 58. g6 {[%clk 0:00:08]}  Rxe7 {[%clk 0:00:11]} 59. Rg5 {[%clk 0:00:08]}  Rg7 {[%clk 0:00:10]} 60. e6+ {[%clk 0:00:09]}  Kc6 {[%clk 0:00:11]} 61. Bd4 {[%clk 0:00:09]}  Rg8 {[%clk 0:00:10]} 62. g7 {[%clk 0:00:10]}  Kd6 {[%clk 0:00:11]} 63. Rf5 {[%clk 0:00:10]}  Kxe6 {[%clk 0:00:08]} 64. Rf8 {[%clk 0:00:11]}  Rxg7+ {[%clk 0:00:00]} 65. Bxg7 {[%clk 0:00:10]} 1-0


[Site "https://www.chess.com"]

[Event "Titled Tuesday Blitz July 11 Late 2023"]
[White "Morefield, Jason"]
[Black "Haitin, Ilja"]
[WhiteFideId "30920825"]
[BlackFideId "4501764"]
[WhiteElo "2775"]
[BlackElo "2415"]
[Result "1-0"]
[Round "4"]
[TimeControl "180+2"]
[Date "2023.07.11"]
[WhiteClock "0:01:18"]
[BlackClock "0:00:00"]
[Board "103"]

1. a3 {[%clk 0:03:00]}  e5 {[%clk 0:02:56]} 2. Nc3 {[%clk 0:02:56]}  d5 {[%clk 0:02:56]} 3. e4 {[%clk 0:02:56]}  d4 {[%clk 0:02:57]} 4. Nce2 {[%clk 0:02:56]}  c5 {[%clk 0:02:57]} 5. Ng3 {[%clk 0:02:56]}  Nc6 {[%clk 0:02:57]} 6. Bc4 {[%clk 0:02:56]}  Bd6 {[%clk 0:02:57]} 7. Nf3 {[%clk 0:02:56]}  Nge7 {[%clk 0:02:52]} 8. d3 {[%clk 0:02:55]}  h5 {[%clk 0:02:50]} 9. Ng5 {[%clk 0:02:46]}  Be6 {[%clk 0:01:40]} 10. Bxe6 {[%clk 0:02:41]}  fxe6 {[%clk 0:01:38]} 11. Nxe6 {[%clk 0:02:42]}  Qa5+ {[%clk 0:01:32]} 12. Bd2 {[%clk 0:02:40]}  Qb6 {[%clk 0:01:32]} 13. Nxg7+ {[%clk 0:02:38]}  Kd7 {[%clk 0:01:31]} 14. N3xh5 {[%clk 0:02:37]}  Rag8 {[%clk 0:01:16]} 15. Nf6+ {[%clk 0:02:32]}  Kc7 {[%clk 0:01:16]} 16. Ne6+ {[%clk 0:02:26]}  Kc8 {[%clk 0:01:13]} 17. Nxg8 {[%clk 0:02:23]}  Rxg8 {[%clk 0:01:14]} 18. O-O {[%clk 0:02:01]}  Qxb2 {[%clk 0:01:07]} 19. f4 {[%clk 0:01:54]}  exf4 {[%clk 0:01:04]} 20. Bxf4 {[%clk 0:01:53]}  Bxf4 {[%clk 0:01:01]} 21. Nxf4 {[%clk 0:01:53]}  Ne5 {[%clk 0:00:58]} 22. Nd5 {[%clk 0:01:45]}  Nxd5 {[%clk 0:00:51]} 23. exd5 {[%clk 0:01:46]}  Qb6 {[%clk 0:00:51]} 24. Qe2 {[%clk 0:01:43]}  Qg6 {[%clk 0:00:49]} 25. Rae1 {[%clk 0:01:33]}  b6 {[%clk 0:00:40]} 26. Qe4 {[%clk 0:01:28]}  Qg7 {[%clk 0:00:33]} 27. d6 {[%clk 0:01:26]}  Nd7 {[%clk 0:00:30]} 28. Qa8+ {[%clk 0:01:21]}  Nb8 {[%clk 0:00:30]} 29. Re7 {[%clk 0:01:20]}  Qxg2+ {[%clk 0:00:00]} 30. Qxg2 {[%clk 0:01:18]} 1-0


[Site "https://www.chess.com"]

[Event "Titled Tuesday Blitz July 11 Late 2023"]
[White "Ncatt"]
[Black "Gareyev, Timur"]
[BlackFideId "14200937"]
[WhiteElo "2415"]
[BlackElo "2769"]
[Result "0-1"]
[Round "4"]
[TimeControl "180+2"]
[Date "2023.07.11"]
[WhiteClock "0:00:14"]
[BlackClock "0:00:16"]
[Board "104"]

1. e4 {[%clk 0:03:00]}  c5 {[%clk 0:02:16]} 2. Nf3 {[%clk 0:03:00]}  g6 {[%clk 0:02:08]} 3. d4 {[%clk 0:02:58]}  cxd4 {[%clk 0:02:09]} 4. Nxd4 {[%clk 0:02:58]}  Nc6 {[%clk 0:02:05]} 5. Nc3 {[%clk 0:02:58]}  Bg7 {[%clk 0:02:03]} 6. Be3 {[%clk 0:02:58]}  Qa5 {[%clk 0:02:02]} 7. Bc4 {[%clk 0:02:56]}  Qb4 {[%clk 0:02:01]} 8. Nxc6 {[%clk 0:01:54]}  Bxc3+ {[%clk 0:01:48]} 9. bxc3 {[%clk 0:01:51]}  Qxc3+ {[%clk 0:01:48]} 10. Bd2 {[%clk 0:01:26]}  Qxc4 {[%clk 0:01:47]} 11. Na5 {[%clk 0:01:25]}  Qxe4+ {[%clk 0:01:46]} 12. Kf1 {[%clk 0:01:25]}  b6 {[%clk 0:01:45]} 13. Bc3 {[%clk 0:01:19]}  Nf6 {[%clk 0:01:34]} 14. Bxf6 {[%clk 0:01:15]}  exf6 {[%clk 0:01:33]} 15. f3 {[%clk 0:01:02]}  Qe5 {[%clk 0:01:10]} 16. Nc4 {[%clk 0:00:46]}  Ba6 {[%clk 0:01:07]} 17. Kf2 {[%clk 0:00:44]}  Qc5+ {[%clk 0:00:53]} 18. Ne3 {[%clk 0:00:44]}  O-O {[%clk 0:00:44]} 19. Qxd7 {[%clk 0:00:43]}  Rad8 {[%clk 0:00:41]} 20. Qxa7 {[%clk 0:00:26]}  Rd2+ {[%clk 0:00:34]} 21. Kg3 {[%clk 0:00:26]}  Qe5+ {[%clk 0:00:34]} 22. Kh3 {[%clk 0:00:24]}  Bc8+ {[%clk 0:00:32]} 23. Ng4 {[%clk 0:00:20]}  h5 {[%clk 0:00:32]} 24. Qa4 {[%clk 0:00:14]}  hxg4+ {[%clk 0:00:26]} 25. fxg4 {[%clk 0:00:14]}  Kg7 {[%clk 0:00:23]} 26. Rae1 {[%clk 0:00:14]}  Rh8# {[%clk 0:00:16]} 0-1


[Site "https://www.chess.com"]

[Event "Titled Tuesday Blitz July 11 Late 2023"]
[White "Nasuta, Grzegorz"]
[Black "Nikologorsky, Matfei"]
[WhiteFideId "1141686"]
[BlackFideId "24102474"]
[WhiteElo "2728"]
[BlackElo "2409"]
[Result "1-0"]
[Round "4"]
[TimeControl "180+2"]
[Date "2023.07.11"]
[WhiteClock "0:00:15"]
[BlackClock "0:00:01"]
[Board "107"]

1. e4 {[%clk 0:03:00]}  c5 {[%clk 0:02:58]} 2. Nf3 {[%clk 0:03:00]}  e6 {[%clk 0:02:59]} 3. d4 {[%clk 0:03:00]}  cxd4 {[%clk 0:02:59]} 4. Nxd4 {[%clk 0:03:01]}  a6 {[%clk 0:03:00]} 5. c4 {[%clk 0:03:01]}  Qc7 {[%clk 0:03:00]} 6. Nc3 {[%clk 0:03:01]}  Nf6 {[%clk 0:03:00]} 7. a3 {[%clk 0:03:01]}  b6 {[%clk 0:03:00]} 8. Be3 {[%clk 0:03:00]}  Bb7 {[%clk 0:02:58]} 9. f3 {[%clk 0:03:01]}  d6 {[%clk 0:02:58]} 10. Be2 {[%clk 0:02:59]}  Nbd7 {[%clk 0:02:58]} 11. Rc1 {[%clk 0:02:58]}  Be7 {[%clk 0:02:57]} 12. O-O {[%clk 0:02:58]}  Rc8 {[%clk 0:02:57]} 13. Qd2 {[%clk 0:02:57]}  Qb8 {[%clk 0:02:51]} 14. Rfd1 {[%clk 0:02:56]}  O-O {[%clk 0:02:49]} 15. b4 {[%clk 0:02:56]}  Rfe8 {[%clk 0:02:37]} 16. Kh1 {[%clk 0:02:52]}  h5 {[%clk 0:02:33]} 17. Bf1 {[%clk 0:02:50]}  d5 {[%clk 0:02:08]} 18. exd5 {[%clk 0:02:37]}  exd5 {[%clk 0:02:08]} 19. Nf5 {[%clk 0:02:16]}  dxc4 {[%clk 0:01:46]} 20. Bf4 {[%clk 0:02:16]}  Qa8 {[%clk 0:01:41]} 21. Bd6 {[%clk 0:02:11]}  Bd8 {[%clk 0:01:26]} 22. Re1 {[%clk 0:01:16]}  Bxf3 {[%clk 0:00:59]} 23. Qg5 {[%clk 0:00:38]}  g6 {[%clk 0:00:57]} 24. Qh6 {[%clk 0:00:37]}  gxf5 {[%clk 0:00:52]} 25. gxf3 {[%clk 0:00:36]}  Qxf3+ {[%clk 0:00:46]} 26. Bg2 {[%clk 0:00:37]}  Rxe1+ {[%clk 0:00:26]} 27. Rxe1 {[%clk 0:00:37]}  Qxc3 {[%clk 0:00:25]} 28. Rg1 {[%clk 0:00:35]}  Ng4 {[%clk 0:00:20]} 29. Bd5 {[%clk 0:00:35]}  Qg7 {[%clk 0:00:16]} 30. Qxg7+ {[%clk 0:00:35]}  Kxg7 {[%clk 0:00:16]} 31. h3 {[%clk 0:00:35]}  Nf6 {[%clk 0:00:15]} 32. Bb7 {[%clk 0:00:30]}  Bc7 {[%clk 0:00:14]} 33. Bxc8 {[%clk 0:00:28]}  Bxd6 {[%clk 0:00:14]} 34. Bxf5 {[%clk 0:00:28]}  Kh6 {[%clk 0:00:13]} 35. hxg4 {[%clk 0:00:28]}  hxg4 {[%clk 0:00:13]} 36. Bxg4 {[%clk 0:00:28]}  Nxg4 {[%clk 0:00:13]} 37. Rxg4 {[%clk 0:00:29]}  b5 {[%clk 0:00:14]} 38. Kg2 {[%clk 0:00:29]}  f5 {[%clk 0:00:14]} 39. Rd4 {[%clk 0:00:28]}  Be5 {[%clk 0:00:14]} 40. Rd5 {[%clk 0:00:27]}  Bb2 {[%clk 0:00:14]} 41. Rd6+ {[%clk 0:00:28]}  Kg5 {[%clk 0:00:14]} 42. Rxa6 {[%clk 0:00:29]}  c3 {[%clk 0:00:14]} 43. Rc6 {[%clk 0:00:26]}  Kf4 {[%clk 0:00:15]} 44. a4 {[%clk 0:00:20]}  bxa4 {[%clk 0:00:14]} 45. b5 {[%clk 0:00:21]}  a3 {[%clk 0:00:14]} 46. b6 {[%clk 0:00:21]}  a2 {[%clk 0:00:15]} 47. b7 {[%clk 0:00:21]}  a1=Q {[%clk 0:00:15]} 48. b8=Q+ {[%clk 0:00:22]}  Ke3 {[%clk 0:00:05]} 49. Qg3+ {[%clk 0:00:18]}  Kd2 {[%clk 0:00:02]} 50. Rd6+ {[%clk 0:00:17]}  Kc2 {[%clk 0:00:02]} 51. Qf2+ {[%clk 0:00:17]}  Kb3 {[%clk 0:00:02]} 52. Rb6+ {[%clk 0:00:17]}  Kc4 {[%clk 0:00:02]} 53. Qe2+ {[%clk 0:00:16]}  Kc5 {[%clk 0:00:01]} 54. Qb5+ {[%clk 0:00:15]}  Kd4 {[%clk 0:00:01]} 55. Rd6+ {[%clk 0:00:15]}  Ke4 {[%clk 0:00:02]} 56. Qd3+ {[%clk 0:00:15]}  Ke5 {[%clk 0:00:01]} 57. Qd4# {[%clk 0:00:15]} 1-0


[Site "https://www.chess.com"]

[Event "Titled Tuesday Blitz July 11 Late 2023"]
[White "Lopez Gracia, Fernando"]
[Black "Volovich, Vasily"]
[WhiteFideId "2207184"]
[BlackFideId "34169676"]
[WhiteElo "2407"]
[BlackElo "2622"]
[Result "1-0"]
[Round "4"]
[TimeControl "180+2"]
[Date "2023.07.11"]
[WhiteClock "0:00:06"]
[BlackClock "0:00:00"]
[Board "108"]

1. e4 {[%clk 0:02:55]}  e6 {[%clk 0:03:00]} 2. d4 {[%clk 0:02:54]}  d5 {[%clk 0:03:00]} 3. Nd2 {[%clk 0:02:54]}  c5 {[%clk 0:03:00]} 4. Ngf3 {[%clk 0:02:52]}  cxd4 {[%clk 0:03:00]} 5. Nxd4 {[%clk 0:02:51]}  Nf6 {[%clk 0:03:00]} 6. exd5 {[%clk 0:02:46]}  Nxd5 {[%clk 0:03:01]} 7. N2f3 {[%clk 0:02:45]}  Bb4+ {[%clk 0:02:59]} 8. c3 {[%clk 0:02:43]}  Nxc3 {[%clk 0:02:57]} 9. bxc3 {[%clk 0:02:39]}  Bxc3+ {[%clk 0:02:57]} 10. Bd2 {[%clk 0:02:33]}  Bxd4 {[%clk 0:02:57]} 11. Bb5+ {[%clk 0:02:28]}  Nc6 {[%clk 0:02:54]} 12. Rc1 {[%clk 0:02:19]}  O-O {[%clk 0:02:54]} 13. O-O {[%clk 0:02:08]}  Bf6 {[%clk 0:02:51]} 14. Qe2 {[%clk 0:02:01]}  a6 {[%clk 0:02:46]} 15. Bd3 {[%clk 0:01:53]}  e5 {[%clk 0:02:41]} 16. Rfd1 {[%clk 0:01:44]}  Qe7 {[%clk 0:02:34]} 17. Qe4 {[%clk 0:01:23]}  g6 {[%clk 0:02:34]} 18. Rxc6 {[%clk 0:01:24]}  bxc6 {[%clk 0:02:17]} 19. Bb4 {[%clk 0:01:19]}  c5 {[%clk 0:01:45]} 20. Bxc5 {[%clk 0:01:08]}  Qxc5 {[%clk 0:01:46]} 21. Qxa8 {[%clk 0:01:08]}  Bf5 {[%clk 0:01:44]} 22. Qxa6 {[%clk 0:01:04]}  Bxd3 {[%clk 0:01:23]} 23. Qxd3 {[%clk 0:00:51]}  Ra8 {[%clk 0:01:22]} 24. Qb3 {[%clk 0:00:34]}  e4 {[%clk 0:01:13]} 25. Nd2 {[%clk 0:00:30]}  Re8 {[%clk 0:00:55]} 26. Qa4 {[%clk 0:00:27]}  Qe5 {[%clk 0:00:41]} 27. Re1 {[%clk 0:00:25]}  Kg7 {[%clk 0:00:21]} 28. Qxe4 {[%clk 0:00:23]}  Qxe4 {[%clk 0:00:14]} 29. Rxe4 {[%clk 0:00:24]}  Rd8 {[%clk 0:00:13]} 30. Re2 {[%clk 0:00:23]}  Bc3 {[%clk 0:00:12]} 31. Nf1 {[%clk 0:00:22]}  Rd1 {[%clk 0:00:12]} 32. g3 {[%clk 0:00:22]}  f5 {[%clk 0:00:12]} 33. Kg2 {[%clk 0:00:23]}  Bd4 {[%clk 0:00:12]} 34. Ne3 {[%clk 0:00:21]}  Ra1 {[%clk 0:00:10]} 35. Kf3 {[%clk 0:00:19]}  Rc1 {[%clk 0:00:06]} 36. h4 {[%clk 0:00:19]}  Rc3 {[%clk 0:00:05]} 37. Rd2 {[%clk 0:00:17]}  Bc5 {[%clk 0:00:04]} 38. Rd7+ {[%clk 0:00:17]}  Kh6 {[%clk 0:00:05]} 39. Rd2 {[%clk 0:00:12]}  Ra3 {[%clk 0:00:04]} 40. Rc2 {[%clk 0:00:11]}  Bd4 {[%clk 0:00:04]} 41. Kf4 {[%clk 0:00:11]}  Bxe3+ {[%clk 0:00:04]} 42. fxe3 {[%clk 0:00:11]}  Ra4+ {[%clk 0:00:04]} 43. Kf3 {[%clk 0:00:11]}  Kh5 {[%clk 0:00:05]} 44. Rb2 {[%clk 0:00:11]}  h6 {[%clk 0:00:05]} 45. Rd2 {[%clk 0:00:07]}  Rb4 {[%clk 0:00:00]} 46. a3 {[%clk 0:00:06]} 1-0


[Site "https://www.chess.com"]

[Event "Titled Tuesday Blitz July 11 Late 2023"]
[White "Guzman Moneo, Alberto"]
[Black "Ozdemir, Serhan Berat"]
[WhiteFideId "2209616"]
[BlackFideId "6374611"]
[WhiteElo "2404"]
[BlackElo "2612"]
[Result "1/2-1/2"]
[Round "4"]
[TimeControl "180+2"]
[Date "2023.07.11"]
[WhiteClock "0:00:08"]
[BlackClock "0:00:06"]
[Board "109"]

1. e4 {[%clk 0:03:00]}  c5 {[%clk 0:02:59]} 2. Nc3 {[%clk 0:02:59]}  e6 {[%clk 0:02:59]} 3. Nge2 {[%clk 0:02:57]}  d5 {[%clk 0:02:58]} 4. g3 {[%clk 0:02:56]}  dxe4 {[%clk 0:02:58]} 5. Nxe4 {[%clk 0:02:56]}  Be7 {[%clk 0:02:58]} 6. Bg2 {[%clk 0:02:54]}  Nf6 {[%clk 0:02:59]} 7. d4 {[%clk 0:02:51]}  Nxe4 {[%clk 0:02:55]} 8. Bxe4 {[%clk 0:02:51]}  Nc6 {[%clk 0:02:54]} 9. Be3 {[%clk 0:02:47]}  Qb6 {[%clk 0:02:37]} 10. O-O {[%clk 0:02:35]}  O-O {[%clk 0:02:36]} 11. dxc5 {[%clk 0:02:13]}  Bxc5 {[%clk 0:02:36]} 12. Bxc5 {[%clk 0:02:13]}  Qxc5 {[%clk 0:02:37]} 13. Qd2 {[%clk 0:02:08]}  Rd8 {[%clk 0:02:32]} 14. Qc3 {[%clk 0:02:02]}  Qe7 {[%clk 0:02:05]} 15. Rad1 {[%clk 0:01:58]}  Bd7 {[%clk 0:02:05]} 16. Qd3 {[%clk 0:01:53]}  g6 {[%clk 0:02:00]} 17. Qd6 {[%clk 0:01:52]}  Qxd6 {[%clk 0:01:59]} 18. Rxd6 {[%clk 0:01:53]}  Be8 {[%clk 0:01:59]} 19. Rfd1 {[%clk 0:01:51]}  Rxd6 {[%clk 0:01:58]} 20. Rxd6 {[%clk 0:01:52]}  Kf8 {[%clk 0:01:58]} 21. c3 {[%clk 0:01:46]}  Ke7 {[%clk 0:01:57]} 22. Rd1 {[%clk 0:01:44]}  f5 {[%clk 0:01:52]} 23. Bc2 {[%clk 0:01:38]}  e5 {[%clk 0:01:51]} 24. Ba4 {[%clk 0:01:29]}  Bf7 {[%clk 0:01:42]} 25. a3 {[%clk 0:01:26]}  a6 {[%clk 0:01:40]} 26. Bxc6 {[%clk 0:01:19]}  bxc6 {[%clk 0:01:40]} 27. f4 {[%clk 0:01:20]}  Bc4 {[%clk 0:01:30]} 28. Re1 {[%clk 0:01:15]}  Bxe2 {[%clk 0:01:30]} 29. Rxe2 {[%clk 0:01:14]}  e4 {[%clk 0:01:31]} 30. Rd2 {[%clk 0:01:13]}  a5 {[%clk 0:01:29]} 31. Kf2 {[%clk 0:01:11]}  a4 {[%clk 0:01:25]} 32. Ke3 {[%clk 0:01:09]}  Rd8 {[%clk 0:01:22]} 33. Rc2 {[%clk 0:01:00]}  Rd3+ {[%clk 0:01:21]} 34. Ke2 {[%clk 0:01:00]}  Kd6 {[%clk 0:01:13]} 35. Rc1 {[%clk 0:00:54]}  Kc5 {[%clk 0:01:12]} 36. Rg1 {[%clk 0:00:54]}  Kc4 {[%clk 0:01:03]} 37. g4 {[%clk 0:00:54]}  Rh3 {[%clk 0:01:01]} 38. gxf5 {[%clk 0:00:53]}  gxf5 {[%clk 0:01:02]} 39. Rg5 {[%clk 0:00:50]}  Rxh2+ {[%clk 0:00:54]} 40. Ke3 {[%clk 0:00:51]}  Rh3+ {[%clk 0:00:46]} 41. Ke2 {[%clk 0:00:50]}  Kb3 {[%clk 0:00:45]} 42. Rxf5 {[%clk 0:00:50]}  Kxb2 {[%clk 0:00:45]} 43. Rc5 {[%clk 0:00:45]}  Rf3 {[%clk 0:00:32]} 44. Rxc6 {[%clk 0:00:41]}  Rxf4 {[%clk 0:00:30]} 45. Ke3 {[%clk 0:00:41]}  Rg4 {[%clk 0:00:28]} 46. c4 {[%clk 0:00:39]}  Kxa3 {[%clk 0:00:28]} 47. Rb6 {[%clk 0:00:34]}  h5 {[%clk 0:00:20]} 48. c5 {[%clk 0:00:31]}  h4 {[%clk 0:00:19]} 49. c6 {[%clk 0:00:24]}  Rg3+ {[%clk 0:00:05]} 50. Kd4 {[%clk 0:00:21]}  Rd3+ {[%clk 0:00:02]} 51. Kxe4 {[%clk 0:00:21]}  Rc3 {[%clk 0:00:02]} 52. Kd4 {[%clk 0:00:19]}  Rc1 {[%clk 0:00:02]} 53. Rb8 {[%clk 0:00:07]}  Rxc6 {[%clk 0:00:02]} 54. Rh8 {[%clk 0:00:08]}  Rb6 {[%clk 0:00:03]} 55. Kc5 {[%clk 0:00:07]}  Rb4 {[%clk 0:00:01]} 56. Rh6 {[%clk 0:00:07]}  Rg4 {[%clk 0:00:01]} 57. Kd5 {[%clk 0:00:07]}  Kb3 {[%clk 0:00:02]} 58. Rb6+ {[%clk 0:00:07]}  Ka2 {[%clk 0:00:03]} 59. Rb4 {[%clk 0:00:06]}  a3 {[%clk 0:00:03]} 60. Rxg4 {[%clk 0:00:07]}  Kb2 {[%clk 0:00:04]} 61. Rb4+ {[%clk 0:00:06]}  Kc3 {[%clk 0:00:04]} 62. Rxh4 {[%clk 0:00:07]}  a2 {[%clk 0:00:04]} 63. Rh1 {[%clk 0:00:08]}  Kb2 {[%clk 0:00:04]} 64. Rh2+ {[%clk 0:00:08]}  Kb1 {[%clk 0:00:04]} 65. Rh1+ {[%clk 0:00:08]}  Kb2 {[%clk 0:00:05]} 66. Rh2+ {[%clk 0:00:08]}  Ka3 {[%clk 0:00:06]} 67. Rh1 {[%clk 0:00:08]}  Kb2 {[%clk 0:00:06]} 1/2-1/2


[Site "https://www.chess.com"]

[Event "Titled Tuesday Blitz July 11 Late 2023"]
[White "Lizak, Peter"]
[Black "Toktomushev, Teimur"]
[WhiteFideId "731595"]
[BlackFideId "14176726"]
[WhiteElo "2581"]
[BlackElo "2397"]
[Result "1-0"]
[Round "4"]
[TimeControl "180+2"]
[Date "2023.07.11"]
[WhiteClock "0:01:14"]
[BlackClock "0:00:00"]
[Board "111"]

1. d4 {[%clk 0:03:00]}  d5 {[%clk 0:03:00]} 2. Nc3 {[%clk 0:03:01]}  Nf6 {[%clk 0:02:59]} 3. Bf4 {[%clk 0:03:01]}  a6 {[%clk 0:02:57]} 4. e3 {[%clk 0:03:02]}  c5 {[%clk 0:02:49]} 5. dxc5 {[%clk 0:03:01]}  Nc6 {[%clk 0:02:30]} 6. Nf3 {[%clk 0:02:59]}  Bg4 {[%clk 0:02:29]} 7. Be2 {[%clk 0:03:00]}  e6 {[%clk 0:02:19]} 8. Na4 {[%clk 0:02:57]}  Bxc5 {[%clk 0:02:10]} 9. Nxc5 {[%clk 0:02:42]}  Qa5+ {[%clk 0:02:09]} 10. c3 {[%clk 0:02:38]}  Qxc5 {[%clk 0:02:09]} 11. Qb3 {[%clk 0:02:33]}  O-O {[%clk 0:01:38]} 12. h3 {[%clk 0:02:21]}  Bxf3 {[%clk 0:01:20]} 13. Bxf3 {[%clk 0:02:21]}  b5 {[%clk 0:01:16]} 14. O-O {[%clk 0:02:18]}  h6 {[%clk 0:01:16]} 15. a4 {[%clk 0:02:16]}  Na5 {[%clk 0:00:50]} 16. Qa3 {[%clk 0:02:16]}  Qxa3 {[%clk 0:00:48]} 17. Rxa3 {[%clk 0:02:17]}  Nc4 {[%clk 0:00:49]} 18. Ra2 {[%clk 0:02:18]}  bxa4 {[%clk 0:00:31]} 19. Be2 {[%clk 0:02:18]}  e5 {[%clk 0:00:23]} 20. Bh2 {[%clk 0:02:07]}  Nd7 {[%clk 0:00:17]} 21. Bxc4 {[%clk 0:02:05]}  dxc4 {[%clk 0:00:18]} 22. Rxa4 {[%clk 0:02:05]}  Rfc8 {[%clk 0:00:09]} 23. Rd1 {[%clk 0:02:04]}  Rc7 {[%clk 0:00:09]} 24. Rd6 {[%clk 0:01:59]}  f6 {[%clk 0:00:06]} 25. Rdxa6 {[%clk 0:01:56]}  Rxa6 {[%clk 0:00:07]} 26. Rxa6 {[%clk 0:01:56]}  Nc5 {[%clk 0:00:08]} 27. Ra8+ {[%clk 0:01:55]}  Kf7 {[%clk 0:00:09]} 28. f4 {[%clk 0:01:46]}  Nd3 {[%clk 0:00:05]} 29. fxe5 {[%clk 0:01:45]}  fxe5 {[%clk 0:00:06]} 30. Rb8 {[%clk 0:01:38]}  Ke6 {[%clk 0:00:04]} 31. e4 {[%clk 0:01:33]}  Ra7 {[%clk 0:00:03]} 32. Rb6+ {[%clk 0:01:32]}  Ke7 {[%clk 0:00:02]} 33. Bg3 {[%clk 0:01:32]}  Ra1+ {[%clk 0:00:02]} 34. Kh2 {[%clk 0:01:32]}  Ra2 {[%clk 0:00:01]} 35. b4 {[%clk 0:01:24]}  cxb3 {[%clk 0:00:01]} 36. Rxb3 {[%clk 0:01:24]}  Rc2 {[%clk 0:00:02]} 37. Rb7+ {[%clk 0:01:15]}  Kf6 {[%clk 0:00:02]} 38. Rc7 {[%clk 0:01:15]}  Nc1 {[%clk 0:00:00]} 39. Rc6+ {[%clk 0:01:14]} 1-0


[Site "https://www.chess.com"]

[Event "Titled Tuesday Blitz July 11 Late 2023"]
[White "Cooklev, Steven"]
[Black "Boldoo, Erdenepurev"]
[WhiteFideId "2050552"]
[BlackFideId "4901037"]
[WhiteElo "2392"]
[BlackElo "2555"]
[Result "0-1"]
[Round "4"]
[TimeControl "180+2"]
[Date "2023.07.11"]
[WhiteClock "0:00:00"]
[BlackClock "0:00:45"]
[Board "114"]

1. e4 {[%clk 0:03:00]}  e6 {[%clk 0:02:57]} 2. d4 {[%clk 0:03:00]}  d5 {[%clk 0:02:57]} 3. Nd2 {[%clk 0:03:01]}  c5 {[%clk 0:02:57]} 4. Ngf3 {[%clk 0:03:01]}  Nc6 {[%clk 0:02:57]} 5. exd5 {[%clk 0:03:00]}  exd5 {[%clk 0:02:58]} 6. Bb5 {[%clk 0:03:00]}  Qe7+ {[%clk 0:02:59]} 7. Be2 {[%clk 0:02:59]}  Qc7 {[%clk 0:02:59]} 8. O-O {[%clk 0:02:58]}  Nf6 {[%clk 0:03:00]} 9. Re1 {[%clk 0:02:57]}  Be6 {[%clk 0:03:00]} 10. Ng5 {[%clk 0:02:50]}  Nxd4 {[%clk 0:02:51]} 11. Nxe6 {[%clk 0:02:50]}  fxe6 {[%clk 0:02:35]} 12. Bh5+ {[%clk 0:02:43]}  g6 {[%clk 0:02:17]} 13. c3 {[%clk 0:02:38]}  Nc6 {[%clk 0:01:59]} 14. Rxe6+ {[%clk 0:02:19]}  Kf7 {[%clk 0:01:56]} 15. Bg4 {[%clk 0:02:18]}  h5 {[%clk 0:01:27]} 16. Bh3 {[%clk 0:02:13]}  Ng4 {[%clk 0:01:27]} 17. Bxg4 {[%clk 0:00:37]}  hxg4 {[%clk 0:01:28]} 18. Qxg4 {[%clk 0:00:38]}  Qxh2+ {[%clk 0:01:26]} 19. Kf1 {[%clk 0:00:38]}  Ne5 {[%clk 0:01:19]} 20. Rxe5 {[%clk 0:00:30]}  Qxe5 {[%clk 0:01:20]} 21. g3 {[%clk 0:00:13]}  Be7 {[%clk 0:01:03]} 22. Nf3 {[%clk 0:00:13]}  Qf5 {[%clk 0:00:52]} 23. Qxf5+ {[%clk 0:00:11]}  gxf5 {[%clk 0:00:53]} 24. Bf4 {[%clk 0:00:10]}  Bf6 {[%clk 0:00:52]} 25. Rd1 {[%clk 0:00:08]}  Rh1+ {[%clk 0:00:52]} 26. Ng1 {[%clk 0:00:09]}  d4 {[%clk 0:00:51]} 27. cxd4 {[%clk 0:00:07]}  Bxd4 {[%clk 0:00:51]} 28. b4 {[%clk 0:00:05]}  Rd8 {[%clk 0:00:45]} 29. bxc5 {[%clk 0:00:00]}  Rxg1+ {[%clk 0:00:45]} 0-1


[Site "https://www.chess.com"]